Workbook

Sheet Лист1
A1: Школа | C1: ГБОУ "Сабинская школа-интернат для детей с ОВЗ" | G1: Согласовал: | H1: должность | J1: Директор школы
A2: Типовое примерное меню приготавливаемых блюд | H2: фамилия | J2: Нуриева Д.Б.
A3: Возрастная категория | E3: 7-11 лет | G3: дата | I3: 9 | J3: 2025
H4: день | I4: месяц | J4: год
A5: Неделя | B5: День недели | C5: Прием пищи | D5: Раздел меню | E5: № рецептуры* | F5: Название блюда | G5: Масса | H5: Белки | I5: Жиры | J5: Углеводы | K5: Калорийность | L5: Цена
A6: 1 | B6: 1 | C6: Завтрак | E6: 07:40:00 | F6: Завтрак
D7: гор.блюдо | E7: 54-2о | F7: Омлет с зеленым горошком | G7: 200 | H7: 13 | I7: 14.3 | J7: 6.4 | K7: 204.7 | L7: 31
D8: гор.напиток | E8: 54-4гн | F8: Чай с молоком | G8: 200 | H8: 1.6 | I8: 1.1 | J8: 8.6 | K8: 50.9 | L8: 4.4
D9: хлеб | E9: Пром. | F9: Хлеб пшеничный с маслом и сыром | G9: 60/10/15 | H9: 8.21 | I9: 12.36 | J9: 29.36 | K9: 265.75 | L9: 13.65
D10: хлеб | E10: Пром. | F10: Хлеб ржаной | G10: 35 | H10: 2.07 | I10: 0.39 | J10: 15.58 | K10: 75.95 | L10: 2.6
F11: Итого за Завтрак | G11: 520 | H11: =SUM(H7:H10) -> 24.88 | I11: 28.15 | J11: 59.94 | K11: 597.3 | L11: =SUM(L7:L10) -> 51.65
A12: 1 | B12: 1 | C12: Второй завтрак | E12: 09:30:00 | F12: Второй завтрак
D13: фрукты | E13: Пром. | F13: Фрукт (яблоко)** | G13: 166 | H13: 0.66 | I13: 0.66 | J13: 16.27 | K13: 78.02 | L13: 12.3
F14: Итого за Второй завтрак | G14: =SUM(G13:G13) -> 166 | H14: =SUM(H13:H13) -> 0.66 | I14: =SUM(I13:I13) -> 0.66 | J14: =SUM(J13:J13) -> 16.27 | K14: =SUM(K13:K13) -> 78.02 | L14: =SUM(L13) -> 12.3
A15: 1 | B15: 1 | C15: Обед | E15: 12:10:00 | F15: Обед
D16: закуска | E16: 54-9з | F16: Салат из капусты с морковью и яблоками | G16: 100 | H16: 1.3 | I16: 10 | J16: 6 | K16: 120.7 | L16: 3.7
D17: 1 блюдо | E17: 54-2с | F17: Борщ с капустой и картофелем со сметаной | G17: 300 | H17: 7.1 | I17: 8.5 | J17: 15.2 | K17: 165.6 | L17: 4.53
D18: 2 блюдо | E18: 54-6г | F18: Рис отварной | G18: 200 | H18: 4.9 | I18: 6.4 | J18: 48.7 | K18: 271.3 | L18: 12.8
D19: гарнир | E19: 54-10р | F19: Рыба тушеная в томате с овощами | G19: 120 | H19: 19.40 | I19: 13.50 | J19: 7.50 | K19: 230.20 | L19: 61.33
D20: напиток | E20: 54-21хн | F20: Кисель | G20: 200 | H20: 0.1 | I20: 0.1 | J20: 14.8 | K20: 60.7 | L20: 1.54
D21: хлеб | E21: Пром. | F21: Хлеб ржаной | G21: 60 | H21: 3.54 | I21: 0.66 | J21: 26.7 | K21: 130.2 | L21: 4.42
D22: хлеб | E22: Пром. | F22: Хлеб пшеничный | G22: 80 | H22: 6.48 | I22: 0.8 | J22: 39.04 | K22: 193.6 | L22: 6.1
F23: Итого за Обед | G23: =SUM(G16:G22) -> 1060 | H23: =SUM(H16:H22) -> 42.82 | I23: 39.96 | J23: 157.94 | K23: 1172.3 | L23: =SUM(L16:L22) -> 94.42
A24: 1 | B24: 1 | C24: Полдник | E24: 16:00:00 | F24: Полдник
D25: напиток | E25: Пром. | F25: Сок | G25: 200 | H25: 0.8 | I25: 0.8 | J25: 19.6 | K25: 84 | L25: 11.6
D26: сладкое | E26: 54-14в | F26: Ватрушка с повидлом | G26: 60 | H26: 3.7 | I26: 1.7 | J26: 38.9 | K26: 185.4 | L26: 6.8
F27: Итого за Полдник | G27: =SUM(G25:G26) -> 260 | H27: 4.5 | I27: 2.5 | J27: 58.5 | K27: 269.4 | L27: 18.4
A28: 1 | B28: 1 | C28: Ужин | E28: 18:00:00 | F28: Ужин
D29: 2 блюдо | E29: 54-11г | F29: Картофельное пюре | G29: 200 | H29: 4.3 | I29: 6.9 | J29: 26.4 | K29: 185.9 | L29: 14.1
D30: гарнир | E30: 54-1м | F30: Бефстроганов из отварной говядины | G30: 120 | H30: 17.88 | I30: 18.6 | J30: 2.76 | K30: 251.04 | L30: 88.1
D31: напиток | E31: 54-21гн | F31: Какао с молоком | G31: 200 | H31: 0.2 | I31: 0 | J31: 6.5 | K31: 26.8 | L31: 9.24
D32: хлеб | E32: Пром. | F32: Хлеб пшеничный | G32: 60 | H32: 4.86 | I32: 0.6 | J32: 29.28 | K32: 145.2 | L32: 4.6
D33: хлеб | E33: Пром. | F33: Хлеб ржаной | G33: 25 | H33: 1.48 | I33: 0.28 | J33: 11.13 | K33: 54.25 | L33: 1.85
F34: Итого за Ужин | G34: =SUM(G29:G33) -> 605 | H34: =SUM(H29:H33) -> 28.72 | I34: 26.38 | J34: 76.07 | K34: 663.19 | L34: =SUM(L29:L33) -> 117.89
A35: 1 | B35: 1 | C35: Второй ужин | E35: 19:30:00 | F35: Второй ужин
D36: напиток | E36: Пром. | F36: Кисломолочный продукт | G36: 190 | H36: 5.13 | I36: 0.57 | J36: 30.02 | K36: 142.5 | L36: 19.4
D37: сладкое | E37: Пром. | F37: Печенье | G37: 30 | H37: 2.25 | I37: 3.54 | J37: 22.47 | K37: 125.1 | L37: 3.3
F38: Итого за Второй ужин | G38: =SUM(G36:G37) -> 220 | H38: =SUM(H36:H37) -> 7.38 | I38: 4.11 | J38: 52.49 | K38: 267.6 | L38: =SUM(L36:L37) -> 22.7
A39: Итого за день | G39: =G38+G34+G27+G23+G14+G11 -> 2831 | H39: =H11+H14+H23+H27+H34+H38 -> 108.96 | I39: =I11+I14+I23+I27+I34+I38 -> 101.76 | J39: =J38+J34+J27+J23+J14+J11 -> 421.21 | K39: =K38+K34+K27+K23+K14+K11 -> 3047.81 | L39: =SUM(L11,L14,L23,L27,L34,L38) -> 317.36
A40: 1 | B40: 2 | C40: Завтрак | E40: 07:40:00 | F40: Завтрак
D41: гор.блюдо | E41: 54-22к | F41: Каша жидкая молочная овсяная | G41: 250 | H41: 8.5 | I41: 9.4 | J41: 30.9 | K41: 240.8 | L41: 18.3
D42: напиток | E42: 54-21гн | F42: Какао с молоком | G42: 200 | H42: 4.7 | I42: 3.5 | J42: 12.5 | K42: 100.4 | L42: 9.2
D43: хлеб | E43: Пром. | F43: Хлеб пшеничный с маслом и сыром | G43: 60/10/15 | H43: 8.21 | I43: 12.36 | J43: 29.36 | K43: 265.75 | L43: 21.5
D44: хлеб | E44: Пром. | F44: Хлеб ржаной | G44: 35 | H44: 2.07 | I44: 0.39 | J44: 15.58 | K44: 75.95 | L44: 2.6
F45: Итого за Завтрак | G45: 570 | H45: =SUM(H41:H44) -> 23.48 | I45: 25.65 | J45: 88.34 | K45: 682.9 | L45: =SUM(L41:L44) -> 51.6
A46: 1 | B46: 2 | C46: Второй завтрак | E46: 09:30:00 | F46: Второй завтрак
D47: фрукты | E47: Пром. | F47: Фрукт (груша)** | G47: 155 | H47: 0.74 | I47: 0.56 | J47: 20.17 | K47: 77.7 | L47: 11.8
F48: Итого за Второй завтрак | G48: =SUM(G47:G47) -> 155 | H48: =SUM(H47:H47) -> 0.74 | I48: =SUM(I47:I47) -> 0.56 | J48: =SUM(J47:J47) -> 20.17 | K48: =SUM(K47:K47) -> 77.7 | L48: =SUM(L47) -> 11.8
A49: 1 | B49: 2 | C49: Обед | E49: 12:10:00 | F49: Обед
D50: закуска | E50: 54-11з | F50: Салат из моркови и яблок | G50: 100 | H50: 1 | I50: 10.2 | J50: 7.2 | K50: 123.7 | L50: 4.3
D51: 1 блюдо | E51: 54-8с | F51: Щи из свежей капусты со сметаной | G51: 300 | H51: 7 | I51: 8.5 | J51: 8.6 | K51: 138.3 | L51: 3.8
D52: 2 блюдо | E52: 54-1г | F52: Макароны отварные | G52: 150 | H52: 5.30 | I52: 4.90 | J52: 32.80 | K52: 196.80 | L52: 10.5
D53: гарнир | E53: 54-6м | F53: Биточек из говядины | G53: 75 | H53: 13.7 | I53: 13 | J53: 12.3 | K53: 221.3 | L53: 56
D54: хлеб | E54: Пром. | F54: Хлеб пшеничный | G54: 70 | H54: 5.67 | I54: 0.7 | J54: 34.16 | K54: 169.4 | L54: 5.3
D55: хлеб | E55: Пром. | F55: Хлеб ржаной | G55: 50 | H55: 2.95 | I55: 0.55 | J55: 22.25 | K55: 108.5 | L55: 3.7
D56: напиток | E56: 54-2хн | F56: Компот из сухофруктов | G56: 200 | H56: 1 | I56: 0.1 | J56: 15.7 | K56: 66.9 | L56: 4.23
F57: Итого за Обед | G57: =SUM(G50:G56) -> 945 | H57: =SUM(H50:H56) -> 36.62 | I57: 37.95 | J57: 133.01 | K57: 1024.9 | L57: =SUM(L50:L56) -> 87.83
A58: 1 | B58: 2 | C58: Полдник | E58: 16:00:00 | F58: Полдник
D59: сладкое | E59: 54-6т | F59: Сырники | G59: 75 | H59: 14.7 | I59: 4.3 | J59: 15.5 | K59: 158.6 | L59: 26.6
D60: напиток | E60: Пром. | F60: Сок | G60: 200 | H60: 0.8 | I60: 0.8 | J60: 19.6 | K60: 84 | L60: 11.6
F61: Итого за Полдник | G61: =SUM(G59:G60) -> 275 | H61: =SUM(H59:H60) -> 15.5 | I61: =SUM(I59:I60) -> 5.1 | J61: =SUM(J59:J60) -> 35.1 | K61: =SUM(K59:K60) -> 242.6 | L61: =SUM(L59:L60) -> 38.2
A62: 1 | B62: 2 | C62: Ужин | E62: 18:00:00 | F62: Ужин
D63: 2 блюдо | E63: 54-9м | F63: Жаркое по-домашнему | G63: 250 | H63: 25.1 | I63: 23.4 | J63: 21.5 | K63: 397.5 | L63: 105.42
D64: гор.напиток | E64: 54-4гн | F64: Чай с молоком и сахаром | G64: 200 | H64: 1.6 | I64: 1.1 | J64: 8.6 | K64: 50.9 | L64: 4.38
D65: хлеб | E65: Пром. | F65: Хлеб пшеничный | G65: 35.7 | H65: 2.89 | I65: 0.36 | J65: 17.42 | K65: 86.39 | L65: 2.7
D66: хлеб | E66: Пром. | F66: Хлеб ржаной | G66: 35 | H66: 2.07 | I66: 0.39 | J66: 15.58 | K66: 75.95 | L66: 2.5
F67: Итого за Ужин | G67: =SUM(G63:G66) -> 520.7 | H67: =SUM(H63:H66) -> 31.66 | I67: =SUM(I63:I66) -> 25.25 | J67: =SUM(J63:J66) -> 63.1 | K67: =SUM(K63:K66) -> 610.74 | L67: =SUM(L63:L66) -> 115
A68: 1 | B68: 2 | C68: Второй ужин | E68: 19:00:00 | F68: Второй ужин
D69: напиток | E69: Пром. | F69: Кисломолочный продукт | G69: 190 | H69: 4.05 | I69: 0.45 | J69: 23.7 | K69: 112.5 | L69: 19.44
D70: хлеб | E70: Пром. | F70: Хлеб пшеничный | G70: 20 | H70: 1.62 | I70: 0.2 | J70: 9.76 | K70: 48.4 | L70: 1.5
F71: Итого за Второй ужин | G71: =SUM(G69:G70) -> 210 | H71: =SUM(H69:H70) -> 5.67 | I71: 0.65 | J71: 33.46 | K71: 160.9 | L71: =SUM(L69:L70) -> 20.94
A72: Итого за день | G72: =G71+G67+G61+G57+G48+G45 -> 2675.7 | H72: =H71+H67+H61+H57+H48+H45 -> 113.67 | I72: =I71+I67+I61+I57+I48+I45 -> 95.16 | J72: =J71+J67+J61+J57+J48+J45 -> 373.18 | K72: =K71+K67+K61+K57+K48+K45 -> 2799.74 | L72: =SUM(L45,L48,L57,L61,L67,L71) -> 325.37
A73: 1 | B73: 3 | C73: Завтрак | E73: 07:40:00 | F73: Завтрак
D74: гор.блюдо | E74: 54-23к | F74: Каша молочная пшеничная | G74: 250 | H74: 8.5 | I74: 7.25 | J74: 40.1 | K74: 260.4 | L74: 16.34
D75: гор.напиток | E75: 54-23гн | F75: Кофейный напиток | G75: 200 | H75: 3.8 | I75: 2.9 | J75: 11.3 | K75: 86 | L75: 10.06
D76: хлеб | E76: Пром. | F76: Хлеб пшеничный с маслом и сыром | G76: 60/10/15 | H76: 8.21 | I76: 12.36 | J76: 29.36 | K76: 265.75 | L76: 21.48
D77: хлеб | E77: Пром. | F77: Хлеб ржаной | G77: 35 | H77: 2.07 | I77: 0.39 | J77: 15.58 | K77: 75.95 | L77: 2.5
F78: Итого за Завтрак | G78: 570 | H78: =SUM(H74:H77) -> 22.58 | I78: 22.9 | J78: 96.34 | K78: 688.1 | L78: =SUM(L74:L77) -> 50.38
A79: 1 | B79: 3 | C79: Второй завтрак | E79: 09:30:00 | F79: Второй завтрак
D80: фрукты | E80: Пром. | F80: Фрукт (апельсин)** | G80: 185 | H80: 1.67 | I80: 0.37 | J80: 14.99 | K80: 66.6 | L80: 22.3
F81: Итого за Второй завтрак | G81: =SUM(G80) -> 185 | H81: =SUM(H80) -> 1.67 | I81: 0.37 | J81: 14.99 | K81: 66.6 | L81: =SUM(L80) -> 22.3
A82: 1 | B82: 3 | C82: Обед | E82: 12:10:00 | F82: Обед
D83: закуска | E83: 54-13з | F83: Салат из отварной свеклы | G83: 100 | H83: 1.3 | I83: 4.5 | J83: 7.7 | K83: 76 | L83: 0.5
D84: 1 блюдо | E84: 54-7с | F84: Суп с макаронными изделиями | G84: 300 | H84: 4.2 | I84: 3.6 | J84: 30.2 | K84: 170 | L84: 1.76
D85: 2 блюдо | E85: 54-21г | F85: Горшница | G85: 200 | H85: 19.3 | I85: 1.7 | J85: 45.1 | K85: 273.1 | L85: 3.9
D86: гарнир | E86: 54-20р | F86: Тефтели рыбные | G86: 80 | H86: 12.60 | I86: 9.00 | J86: 10.10 | K86: 172.30 | L86: 44.52
D87: напиток | E87: 54-2хн | F87: Компот из сухофруктов | G87: 200 | H87: 1 | I87: 0.1 | J87: 15.7 | K87: 66.9 | L87: 4.23
D88: хлеб | E88: Пром. | F88: Хлеб пшеничный | G88: 80 | H88: 6.48 | I88: 0.8 | J88: 39.04 | K88: 193.6 | L88: 6.08
D89: хлеб | E89: Пром. | F89: Хлеб ржаной | G89: 50 | H89: 2.95 | I89: 0.55 | J89: 22.25 | K89: 108.5 | L89: 3.7
F90: Итого за Обед | G90: =SUM(G83:G89) -> 1010 | H90: =SUM(H83:H89) -> 47.83 | I90: 20.25 | J90: 170.09 | K90: 1060.4 | L90: =SUM(L83:L89) -> 64.69
A91: 1 | B91: 3 | C91: Полдник | E91: 16:00:00 | F91: Полдник
D92: напиток | E92: Пром. | F92: Сок | G92: 200 | H92: 0.8 | I92: 0.8 | J92: 19.6 | K92: 84 | L92: 11.6
D93: сладкое | E93: 54-9в | F93: Булочка школьная | G93: 60 | H93: 5.2 | I93: 1.8 | J93: 34 | K93: 172.6 | L93: 3.76
F94: Итого за Полдник | G94: =SUM(G92:G93) -> 260 | H94: =SUM(H92:H93) -> 6 | I94: 2.6 | J94: 53.6 | K94: 256.6 | L94: =SUM(L92:L93) -> 15.36
A95: 1 | B95: 3 | C95: Ужин | E95: 18:00:00 | F95: Ужин
D96: 2 блюдо | E96: 54-13м | F96: Запеканка картофельная с говядиной | G96: 250 | H96: 29.5 | I96: 29 | J96: 33.1 | K96: 510.9 | L96: 130.53
D97: гор.напиток | E97: 54-4гн | F97: Чай с сахаром | G97: 200 | H97: 0.2 | I97: 0 | J97: 6.5 | K97: 26.8 | L97: 0.68
D98: хлеб | E98: Пром. | F98: Хлеб пшеничный | G98: 48.8 | H98: 3.95 | I98: 0.49 | J98: 23.81 | K98: 118.1 | L98: 3.7
D99: хлеб | E99: Пром. | F99: Хлеб ржаной | G99: 35 | H99: 2.07 | I99: 0.39 | J99: 15.58 | K99: 75.95 | L99: 2.5
F100: Итого за Ужин | G100: =SUM(G96:G99) -> 533.8 | H100: =SUM(H96:H99) -> 35.72 | I100: 29.88 | J100: 78.99 | K100: 731.75 | L100: =SUM(L96:L99) -> 137.41
A101: 1 | B101: 3 | C101: Второй ужин | E101: 19:30:00 | F101: Второй ужин
D102: напиток | E102: Пром. | F102: Кисломолочный продут | G102: 190 | H102: 5.13 | I102: 0.57 | J102: 30.02 | K102: 142.5 | L102: 19.44
D103: сладкое | E103: Пром. | F103: Печенье | G103: 30 | H103: 2.25 | I103: 3.54 | J103: 22.47 | K103: 125.1 | L103: 3.3
F104: Итого за Второй ужин | G104: =SUM(G102:G103) -> 220 | H104: =SUM(H102:H103) -> 7.38 | I104: 4.11 | J104: 52.49 | K104: 267.6 | L104: =SUM(L102:L103) -> 22.74
A105: Итого за день | G105: =G104+G100+G94+G90+G81+G78 -> 2778.8 | H105: =H104+H100+H94+H90+H81+H78 -> 121.18 | I105: =I104+I100+I94+I90+I81+I78 -> 80.11 | J105: =J104+J100+J94+J90+J81+J78 -> 466.5 | K105: =K104+K100+K94+K90+K81+K78 -> 3071.05 | L105: =SUM(L78,L81,L90,L94,L100,L104) -> 312.88
A106: 1 | B106: 4 | C106: Завтрак | E106: 07:40:00 | F106: Завтрак
D107: гор.блюдо | E107: 54-16к | F107: Каша дружба | G107: 250 | H107: 6.3 | I107: 7.3 | J107: 30.1 | K107: 211.1 | L107: 16.66
D108: напиток | E108: 54-21гн | F108: Какао с молоком | G108: 200 | H108: 4.6 | I108: 3.6 | J108: 12.6 | K108: 100.4 | L108: 9.2
D109: хлеб | E109: Пром. | F109: Хлеб пшеничный с маслом и сыром | G109: 60/10/15 | H109: 8.21 | I109: 12.36 | J109: 29.36 | K109: 265.75 | L109: 21.48
D110: хлеб | E110: Пром. | F110: Хлеб ржаной | G110: 35 | H110: 2.07 | I110: 0.39 | J110: 15.58 | K110: 75.95 | L110: 2.58
F111: Итого за Завтрак | G111: 560 | H111: =SUM(H107:H110) -> 21.18 | I111: 23.65 | J111: 87.64 | K111: 653.2 | L111: =SUM(L107:L110) -> 49.92
A112: 1 | B112: 4 | C112: Второй завтрак | E112: 09:30:00 | F112: Второй завтрак
D113: фрукты | E113: Пром. | F113: Фрукт (груша)** | G113: 185 | H113: 0.74 | I113: 0.56 | J113: 20.17 | K113: 77.7 | L113: 22.3
F114: Итого за Второй завтрак | G114: =SUM(G113) -> 185 | H114: =SUM(H113) -> 0.74 | I114: 0.56 | J114: 20.17 | K114: 77.7 | L114: =SUM(L113) -> 22.3
A115: 1 | B115: 4 | C115: Обед | E115: 12:10:00 | F115: Обед
D116: закуска | E116: 54-7з | F116: Салат из белокочанной капусты | G116: 100 | H116: 2.7 | I116: 10.2 | J116: 10.3 | K116: 142.8 | L116: 2.95
D117: 1 блюдо | E117: 54-10с | F117: Суп крестьянский с крупой | G117: 300 | H117: 3.2 | I117: 8.7 | J117: 17.1 | K117: 160.3 | L117: 3.5
D118: 2 блюдо | E118: 54-11г | F118: Картофельное пюре | G118: 200 | H118: 4.3 | I118: 6.9 | J118: 26.4 | K118: 185.9 | L118: 14.06
D119: гарнир | E119: 54-4м | F119: Котлета из говядины | G119: 75 | H119: 13.70 | I119: 13.10 | J119: 12.40 | K119: 221.30 | L119: 51.7
D120: напиток | E120: 54-2хн | F120: Компот из сухофруктов | G120: 200 | H120: 1 | I120: 0.1 | J120: 15.7 | K120: 66.9 | L120: 4.23
D121: хлеб | E121: Пром. | F121: Хлеб пшеничный | G121: 70 | H121: 5.67 | I121: 0.7 | J121: 34.16 | K121: 169.4 | L121: 5.3
D122: хлеб | E122: Пром. | F122: Хлеб ржаной | G122: 50 | H122: 2.95 | I122: 0.55 | J122: 22.25 | K122: 108.5 | L122: 3.69
F123: Итого за Обед | G123: =SUM(G116:G122) -> 995 | H123: =SUM(H116:H122) -> 33.52 | I123: 40.25 | J123: 138.31 | K123: 1055.1 | L123: =SUM(L116:L122) -> 85.43
A124: 1 | B124: 4 | C124: Полдник | E124: 16:00:00 | F124: Полдник
D125: напиток | E125: Пром. | F125: Сок | G125: 200 | H125: 0.8 | I125: 0.8 | J125: 19.6 | K125: 84 | L125: 11.6
D126: сладкое | E126: 54-1т | F126: Запеканка из творога | G126: 200 | H126: 39.5 | I126: 14.2 | J126: 29.6 | K126: 405 | L126: 80.4
F127: Итого за Полдник | G127: =SUM(G125:G126) -> 400 | H127: =SUM(H125:H126) -> 40.3 | I127: 15 | J127: 49.2 | K127: 489 | L127: =SUM(L125:L126) -> 92
A128: 1 | B128: 4 | C128: Ужин | E128: 18:00:00 | F128: Ужин
D129: гор.блюдо | E129: 54-4г | F129: Каша гречневая рассыпчатая | G129: 150 | H129: 8.3 | I129: 6.3 | J129: 36 | K129: 233.7 | L129: 11.36
D130: гарнир | E130: 54-2р | F130: Котлета рыбная | G130: 100 | H130: 17.5 | I130: 6.6 | J130: 8.5 | K130: 163.6 | L130: 63.6
D131: гор.напиток | E131: 54-4гн | F131: Чай с молоком | G131: 200 | H131: 1.6 | I131: 1.1 | J131: 8.7 | K131: 50.9 | L131: 4.14
D132: хлеб | E132: Пром. | F132: Хлеб пшеничный | G132: 36.7 | H132: 2.97 | I132: 0.37 | J132: 17.91 | K132: 88.81 | L132: 2.78
D133: хлеб | E133: Пром. | F133: Хлеб ржаной | G133: 35 | H133: 2.07 | I133: 0.39 | J133: 15.58 | K133: 75.95 | L133: 2.58
F134: Итого за Ужин | G134: =SUM(G129:G133) -> 485 | H134: =SUM(H129:H133) -> 32.44 | I134: 14.76 | J134: 86.69 | K134: 612.96 | L134: =SUM(L129:L133) -> 84.46
A135: 1 | B135: 4 | C135: Второй ужин | E135: 19:30:00 | F135: Второй ужин
D136: напиток | E136: Пром. | F136: Кисломолочный продукт | G136: 180 | H136: 4.86 | I136: 0.54 | J136: 28.44 | K136: 135 | L136: 18.42
D137: сладкое | E137: Пром. | F137: Печенье | G137: 30 | H137: 2.25 | I137: 3.54 | J137: 22.47 | K137: 125.1 | L137: 3.3
F138: Итого за Второй ужин | G138: =SUM(G136:G137) -> 210 | H138: =SUM(H136:H137) -> 7.11 | I138: 4.08 | J138: 50.91 | K138: 260.1 | L138: =SUM(L136:L137) -> 21.72
A139: Итого за день | G139: =G138+G134+G127+G123+G114+G111 -> 2835 | H139: =H138+H134+H127+H123+H114+H111 -> 135.29 | I139: =I138+I134+I127+I123+I114+I111 -> 98.3 | J139: =J138+J134+J127+J123+J114+J111 -> 432.92 | K139: =K138+K134+K127+K123+K114+K111 -> 3148.06 | L139: =SUM(L111,L114,L123,L127,L134,L138) -> 355.83
A140: 1 | B140: 5 | C140: Завтрак | E140: 07:40:00 | F140: Завтрак
D141: гор.блюдо | E141: 54-28к | F141: Каша молочная пшенная | G141: 250 | H141: 7.4 | I141: 7.9 | J141: 34 | K141: 236.6 | L141: 16.56
D142: напиток | E142: 54-23гн | F142: Какао с молоком | G142: 200 | H142: 4.6 | I142: 3.6 | J142: 12.6 | K142: 100.4 | L142: 11.24
D143: хлеб | E143: Пром. | F143: Хлеб пшеничный с маслом и сыром | G143: 60/10/15 | H143: 8.21 | I143: 12.36 | J143: 29.36 | K143: 265.75 | L143: 21.48
D144: хлеб | E144: Пром. | F144: Хлеб ржаной | G144: 35 | H144: 2.07 | I144: 0.39 | J144: 15.58 | K144: 75.95 | L144: 2.58
F145: Итого за Завтрак | G145: 570 | H145: 21 | I145: 19.5 | J145: 68.1 | K145: 530.8 | L145: =SUM(L141:L144) -> 51.86
A146: 1 | B146: 5 | C146: Второй завтрак | E146: 09:30:00 | F146: Второй завтрак
D147: фрукты | E147: Пром. | F147: Фрукт (апельсин)** | G147: 185 | H147: 1.67 | I147: 0.37 | J147: 14.99 | K147: 66.6 | L147: 11.7
F148: Итого за Второй завтрак | G148: =SUM(G147) -> 185 | H148: =SUM(H147) -> 1.67 | I148: 0.37 | J148: 14.99 | K148: 66.6 | L148: =SUM(L147) -> 11.7
A149: 1 | B149: 5 | C149: Обед | E149: 12:10:00 | F149: Обед
D150: закуска | E150: 54-8з | F150: Салат из белокочанной капусты с морковью | G150: 100 | H150: 1.7 | I150: 10.2 | J150: 9.7 | K150: 135.8 | L150: 2.2
D151: 1 блюдо | E151: 54-17с | F151: Суп овощной | G151: 300 | H151: 2.7 | I151: 6.2 | J151: 13.5 | K151: 118 | L151: 3.39
D152: 2 блюдо | E152: 54-28м | F152: Жаркое по домашнему из курицы | G152: 250 | H152: 31 | I152: 7.75 | J152: 22 | K152: 282.1 | L152: 39.17
D153: напиток | E153: 54-2хн | F153: Компот из сухофруктов | G153: 200 | H153: 1 | I153: 0.1 | J153: 15.7 | K153: 66.9 | L153: 4.23
D154: хлеб | E154: Пром. | F154: Хлеб пшеничный | G154: 80 | H154: 6.48 | I154: 0.8 | J154: 39.04 | K154: 193.6 | L154: 6.08
D155: хлеб | E155: Пром. | F155: Хлеб ржаной | G155: 50 | H155: 2.95 | I155: 0.55 | J155: 22.25 | K155: 108.5 | L155: 3.69
F156: Итого за Обед | G156: =SUM(G150:G155) -> 980 | H156: =SUM(H150:H155) -> 45.83 | I156: 25.6 | J156: 122.19 | K156: 904.9 | L156: =SUM(L150:L155) -> 58.76
A157: 1 | B157: 5 | C157: Полдник | E157: 16:00:00 | F157: Полдник
D158: напиток | E158: Пром. | F158: Сок | G158: 200 | H158: 0.8 | I158: 0.8 | J158: 19.6 | K158: 84 | L158: 11.6
D159: сладкое | E159: 54-2т | F159: Запеанка из творога с морковью | G159: 200 | H159: 20.7 | I159: 12.3 | J159: 35 | K159: 332.7 | L159: 53.61
F160: Итого за Полдник | G160: =SUM(G158:G159) -> 400 | H160: =SUM(H158:H159) -> 21.5 | I160: 13.1 | J160: 54.6 | K160: 416.7 | L160: =SUM(L158:L159) -> 65.21
A161: 1 | B161: 5 | C161: Ужин | E161: 18:00:00 | F161: Ужин
D162: гор.блюдо | E162: 54-1о | F162: Омлет | G162: 100 | H162: 8.45 | I162: 12 | J162: 2.2 | K162: 150.3 | L162: 18.1
D163: гор.напиток | E163: 54-2гн | F163: Чай с сахаром | G163: 200 | H163: 0.2 | I163: 0 | J163: 6.5 | K163: 26.8 | L163: 0.68
D164: хлеб | E164: Пром. | F164: Хлеб пшеничный | G164: 40 | H164: 3.24 | I164: 0.4 | J164: 19.52 | K164: 96.8 | L164: 3.04
D165: хлеб | E165: Пром. | F165: Хлеб ржаной | G165: 35 | H165: 2.07 | I165: 0.39 | J165: 15.58 | K165: 75.95 | L165: 2.58
F166: Итого за Ужин | G166: =SUM(G162:G165) -> 375 | H166: =SUM(H162:H165) -> 13.96 | I166: 12.79 | J166: 43.8 | K166: 349.85 | L166: =SUM(L162:L165) -> 24.4
A167: 1 | B167: 5 | C167: Второй ужин | E167: 19:30:00 | F167: Второй ужин
D168: напиток | E168: Пром. | F168: Молоко кипяченое | G168: 200 | H168: 4.2 | I168: 3.75 | J168: 15.3 | K168: 112.5 | L168: 14.8
D169: хлеб | E169: Пром. | F169: Печенье | G169: 20 | H169: 1.5 | I169: 1.86 | J169: 14.88 | K169: 83 | L169: 2.2
F170: Итого за Второй ужин | G170: =SUM(G168:G169) -> 220 | H170: =SUM(H168:H169) -> 5.7 | I170: 5.61 | J170: 30.18 | K170: 195.5 | L170: =SUM(L168:L169) -> 17
A171: Итого за день | G171: =G145+G148+G156+G160+G166+G170 -> 2730 | H171: =H145+H148+H156+H160+H166+H170 -> 109.66 | I171: =I145+I148+I156+I160+I166+I170 -> 76.97 | J171: =J145+J148+J156+J160+J166+J170 -> 333.86 | K171: =K145+K148+K156+K160+K166+K170 -> 2464.35 | L171: =SUM(L145,L148,L156,L160,L166,L170) -> 228.93
A172: 2 | B172: 1 | C172: Завтрак | E172: 07:40:00 | F172: Завтрак
D173: гор.блюдо | E173: 54-2о | F173: Омлет с зеленым горошком | G173: 200 | H173: 13 | I173: 14.3 | J173: 6.4 | K173: 204.4 | L173: 31
D174: гор.напиток | E174: 54-23гн | F174: Кофейный наапиток | G174: 200 | H174: 3.8 | I174: 2.9 | J174: 11.3 | K174: 86 | L174: 10.06
D175: хлеб | E175: Пром. | F175: Хлеб пшеничный с маслом и сыром | G175: 60/10/15 | H175: 8.21 | I175: 12.36 | J175: 29.36 | K175: 265.75 | L175: 21.48
D176: хлеб | E176: Пром. | F176: Хлеб ржаной | G176: 30 | H176: 1.77 | I176: 0.33 | J176: 13.35 | K176: 65.1 | L176: 2.2
F177: Итого за Завтрак | G177: 515 | H177: =SUM(H173:H176) -> 26.78 | I177: 29.89 | J177: 60.41 | K177: 621.25 | L177: =SUM(L173:L176) -> 64.74
A178: 2 | B178: 1 | C178: Второй завтрак | E178: 09:30:00 | F178: Второй завтрак
D179: фрукты | E179: Пром. | F179: Фрукт (банан)** | G179: 127 | H179: 1.91 | I179: 0.25 | J179: 27.69 | K179: 120.65 | L179: 11.7
F180: Итого за Второй завтрак | G180: =SUM(G179) -> 127 | H180: =SUM(H179) -> 1.91 | I180: 0.25 | J180: 27.69 | K180: 120.65 | L180: =SUM(L179) -> 11.7
A181: 2 | B181: 1 | C181: Обед | E181: 12:10:00 | F181: Обед
D182: закуска | E182: 54-9з | F182: Салат из капусты с морковью и яблоками | G182: 100 | H182: 1.3 | I182: 10 | J182: 6 | K182: 120.7 | L182: 3.7
D183: 1 блюдо | E183: 54-8с | F183: Суп гороховый | G183: 300 | H183: 10.1 | I183: 6.9 | J183: 24.4 | K183: 199.7 | L183: 2.65
D184: 2 блюдо | E184: 54-11г | F184: Картофельное пюре | G184: 200 | H184: 4.3 | I184: 6.9 | J184: 26.4 | K184: 185.9 | L184: 14.06
D185: гарнир | E185: 54-2р | F185: Рыбная котлета | G185: 100 | H185: 17.5 | I185: 6.6 | J185: 8.5 | K185: 163.6 | L185: 62.4
D186: напиток | E186: 54-21хн | F186: Кисель | G186: 200 | H186: 0.1 | I186: 0.1 | J186: 14.8 | K186: 60.7 | L186: 1.54
D187: хлеб | E187: Пром. | F187: Хлеб пшеничный | G187: 70 | H187: 5.67 | I187: 0.7 | J187: 34.16 | K187: 169.4 | L187: 5.32
D188: хлеб | E188: Пром. | F188: Хлеб ржаной | G188: 60 | H188: 3.54 | I188: 0.66 | J188: 26.7 | K188: 130.2 | L188: 4.42
F189: Итого за Обед | G189: =SUM(G182:G188) -> 1030 | H189: =SUM(H182:H188) -> 42.51 | I189: 31.86 | J189: 140.96 | K189: 1030.2 | L189: =SUM(L182:L188) -> 94.09
A190: 2 | B190: 1 | C190: Полдник | E190: 16:00:00 | F190: Полдник
D191: напиток | E191: Пром. | F191: Сок | G191: 200 | H191: 0.8 | I191: 0.8 | J191: 19.6 | K191: 84 | L191: 11.6
D192: сладкое | E192: 54-4т | F192: Пудинг из творога с яблоками | G192: 200 | H192: 30.5 | I192: 14.5 | J192: 20.5 | K192: 334 | L192: 58.49
F193: Итого за Полдник | G193: =SUM(G191:G192) -> 400 | H193: =SUM(H191:H192) -> 31.3 | I193: 15.3 | J193: 40.1 | K193: 418 | L193: =SUM(L191:L192) -> 70.09
A194: 2 | B194: 1 | C194: Ужин | E194: 18:00:00 | F194: Ужин
D195: 2 блюдо | E195: 54-27 м | F195: Капуста тушеная с мясом птицы | G195: 250 | H195: 21 | I195: 10.3 | J195: 13 | K195: 228.6 | L195: 21.53
D196: напиток | E196: 54-2гн | F196: Чай с сахаром | G196: 200 | H196: 0.2 | I196: - | J196: 6.5 | K196: 26.8 | L196: 0.68
D197: хлеб | E197: Пром. | F197: Хлеб пшеничный | G197: 40 | H197: 3.24 | I197: 0.4 | J197: 19.52 | K197: 96.8 | L197: 3.04
D198: хлеб | E198: Пром. | F198: Хлеб ржаной | G198: 30 | H198: 1.77 | I198: 0.33 | J198: 13.35 | K198: 65.1 | L198: 2.2
F199: Итого за Ужин | G199: =SUM(G195:G198) -> 520 | H199: =SUM(H195:H198) -> 26.21 | I199: 11.03 | J199: 52.37 | K199: 417.3 | L199: =SUM(L195:L198) -> 27.45
A200: 2 | B200: 1 | C200: Второй ужин | E200: 19:00:00 | F200: Второй ужин
... 137 more rows
